bitfinex-derivatives/quotes_SOLF0:USTF0_20241029
["timestamp","ask_amount","ask_price","bid_price","bid_amount"]
[1730163067173,2.8088,178.11,178.07,2.8093]
[1730163067466,4.3,178.13,178.05,2.8096]
[1730163067965,4.3,178.13,178.04,13.50170736]
[1730163068276,2.809,178.1,178.06,2.8095]
[1730163069764,4.3,178.13,178.06,2.8095]
[1730163069959,2.8091,178.09,178.05,2.8097]
[1730163070566,2.8091,178.09,178.06,2.8095]
[1730163070883,2.809,178.1,178.06,2.8095]
[1730163072570,13.50170736,178.11,178.02,13.50170736]
[1730163073766,13.50170736,178.11,178.04,2.8097]
[1730163073967,13.50170736,178.11,178.02,13.50170736]
[1730163074581,2.8093,178.08,178.04,2.8098]
[1730163075074,4.3,178.13,178.02,13.50170736]
[1730163075266,2.809,178.1,178.02,13.50170736]
[1730163075468,4.3,178.13,178.02,13.50170736]
[1730163076081,2.8093,178.08,178.04,2.8098]
[1730163076374,13.50170736,178.11,178.0,8.0607]
[1730163076577,8.63746351,178.08,178.02,8.63746351]
[1730163077179,8.63746351,178.06,178.0,12.39816351]
[1730163077479,8.63746351,178.04,178.0,2.4715]
[1730163077670,2.8099,178.04,178.01,8.63746351]
[1730163078779,8.63746351,178.03,177.92,1.2648]
[1730163078984,8.63746351,178.02,177.98,8.63746351]
[1730163079287,12.93746351,178.04,177.99,8.63746351]
[1730163079471,8.63746351,178.04,177.99,8.63746351]
[1730163079977,2.8102,178.02,177.99,8.63746351]
[1730163080178,8.63746351,178.04,177.99,8.63746351]
[1730163080567,2.81,178.03,177.99,2.8105]
[1730163081985,4.3,178.05,177.96,13.50148025]
[1730163082179,13.50148025,178.04,177.94,4.3]
[1730163082383,14.70358025,178.04,177.93,15.99938025]
[1730163082582,13.50148025,178.0,177.93,1.2026]
[1730163082775,4.3,177.99,177.93,1.2026]
[1730163082973,7.8122666,178.09,177.95,13.50148025]
[1730163083179,20.83246028,178.11,177.93,4.3]
[1730163083180,13.50148025,178.11,178.0,13.50148025]
[1730163083484,2.8097,178.05,178.0,13.50148025]
[1730163083983,2.8097,178.05,177.99,4.3]
[1730163084181,2.8099,178.04,177.99,4.3]
[1730163085178,2.81,178.04,177.99,7.1106]
[1730163085485,17.80148025,178.09,177.99,4.3]
[1730163085682,2.8101,178.03,177.98,2.8108]
[1730163085884,4.3,178.05,177.96,6.7621]
[1730163086287,13.50148025,178.04,177.96,2.4621]
[1730163086788,4.3,178.05,177.96,15.96358025]
[1730163086982,4.3,178.05,177.98,13.50148025]
[1730163087483,4.3,178.07,177.98,13.50148025]
[1730163087884,2.8097,178.06,178.01,2.8103]
[1730163088080,16.26033042,178.16,178.03,13.50148025]
[1730163088381,16.26033042,178.16,178.04,4.3]
[1730163088382,1.2152,178.14,178.04,4.3]
[1730163088578,2.8087,178.11,178.05,2.8096]
[1730163088781,2.8087,178.11,178.04,4.3]
[1730163088983,1.2152,178.14,178.05,13.50148025]
[1730163089283,2.8085,178.13,178.08,2.8091]
[1730163092183,39.7104591,178.27,178.03,1.2849]
[1730163092184,7.8144501,178.25,178.14,2.8082]
[1730163092390,14.68138025,178.23,178.13,13.50148025]
[1730163092692,4.36,178.22,178.14,2.8082]
[1730163093192,2.8074,178.2,178.14,2.8082]
[1730163093392,4.36,178.22,178.14,2.8082]
[1730163093787,13.50148025,178.21,178.1,13.50148025]
[1730163093991,13.50148025,178.21,178.12,2.8086]
[1730163094382,7.8144501,178.19,178.1,13.50148025]
[1730163094584,12.05697967,178.18,178.09,4.36]
[1730163094787,12.05697967,178.18,178.09,17.86148025]
[1730163094788,4.24252957,178.17,178.09,17.86148025]
[1730163094991,7.8144501,178.18,178.11,13.50148025]
[1730163094992,2.8081,178.16,178.11,13.50148025]
[1730163095192,12.1744501,178.18,178.12,2.8085]
[1730163095193,4.36,178.18,178.12,2.8085]
[1730163096193,34.34001385,178.21,178.16,13.50148025]
[1730163096194,7.8144501,178.21,178.16,13.50148025]
[1730163096498,7.8144501,178.23,178.16,13.50148025]
[1730163097098,7.8144501,178.24,178.16,13.50148025]
[1730163097295,7.8144501,178.24,178.2,2.8072]
[1730163097499,7.04306076,178.25,178.18,13.50148025]
[1730163097500,7.8144501,178.25,178.18,13.50148025]
[1730163097692,4.36,178.26,178.18,13.50148025]
[1730163097693,4.23616043,178.24,178.18,13.50148025]
[1730163097890,7.8144501,178.25,178.18,13.50148025]
[1730163098092,12.1744501,178.26,178.18,13.50148025]
[1730163098293,2.8068,178.24,178.19,2.8074]
[1730163099001,8.9984501,178.27,178.18,13.50148025]
[1730163099200,4.23237868,178.26,178.18,13.50148025]
[1730163099397,4.23237868,178.26,178.19,1.248]
[1730163099599,4.23237868,178.26,178.21,2.8072]
[1730163099795,4.23237868,178.26,178.19,1.248]
[1730163100097,2.8064,178.26,178.21,2.8071]
[1730163101096,7.1664,178.26,178.19,1.248]
[1730163101304,4.36,178.26,178.19,1.248]
[1730163101496,4.36,178.26,178.18,13.50148025]
[1730163102405,4.36,178.26,178.18,16.30898025]
[1730163102406,2.807,178.23,178.18,16.30898025]
[1730163103090,7.8144501,178.36,178.21,13.50148025]
[1730163103309,6.66146078,178.35,178.24,13.50148025]
[1730163103517,13.50148025,178.33,178.22,13.50148025]
[1730163103688,4.36,178.32,178.22,13.50148025]
[1730163104199,4.36,178.32,178.23,2.8068]
[1730163104804,2.8063,178.27,178.22,16.30848025]
[1730163105102,4.36,178.26,178.22,16.30848025]
[1730163106095,4.36,178.26,178.22,13.50148025]
[1730163106297,4.36,178.26,178.23,2.8068]
[1730163108903,4.36,178.26,178.19,13.50148025]
[1730163109103,2.8066,178.25,178.2,2.8072]
[1730163109709,2.8066,178.25,178.19,13.50148025]
[1730163109710,2.8066,178.25,178.21,2.8071]
[1730163110302,2.8066,178.25,178.19,13.50148025]
[1730163110607,2.8066,178.25,178.2,2.8072]
[1730163110804,2.8066,178.25,178.19,13.50148025]
[1730163113113,4.36,178.26,178.19,13.50148025]
[1730163113314,4.36,178.26,178.22,13.50148025]
[1730163113816,4.36,178.26,178.23,2.8068]
[1730163114706,7.8144501,178.33,178.25,13.50148025]
[1730163114910,12.1744501,178.36,178.29,13.50148025]
[1730163115209,12.1744501,178.36,178.27,13.50148025]
[1730163115210,4.36,178.36,178.27,13.50148025]
[1730163115409,13.50148025,178.34,178.24,1.1954]
[1730163115615,4.20886915,178.33,178.21,13.50148025]
[1730163115816,13.50148025,178.34,178.21,13.50148025]
[1730163115817,2.8063,178.27,178.23,2.8068]
[1730163116018,7.1663,178.27,178.23,2.8068]
[1730163116626,2.8066,178.25,178.21,16.30858025]
[1730163116815,4.36,178.27,178.21,16.30858025]
[1730163117014,4.36,178.27,178.21,13.50148025]
[1730163118022,4.36,178.27,178.2,1.2789]
[1730163118421,2.8067,178.25,178.2,1.2789]
[1730163120223,4.36,178.27,178.18,2.8076]
[1730163120523,4.36,178.26,178.19,13.50148025]
[1730163120819,2.8067,178.25,178.2,2.8073]
[1730163121027,4.36,178.26,178.2,2.8073]
[1730163121225,4.36,178.26,178.19,13.50148025]
[1730163121525,4.36,178.26,178.21,13.50148025]
[1730163122422,4.36,178.26,178.21,2.8071]
[1730163123021,7.1665,178.26,178.21,2.8071]
[1730163124720,21.31593035,178.31,178.21,2.8071]
[1730163124721,4.44,178.28,178.21,13.50148025]
[1730163125119,2.8065,178.26,178.21,16.30858025]
[1730163125329,4.44,178.28,178.18,5.6658]
[1730163125520,17.94148025,178.28,178.18,14.72728025]
[1730163125728,2.8065,178.25,178.19,2.8074]
[1730163126035,2.8065,178.25,178.18,14.72728025]
[1730163126036,4.44,178.24,178.18,14.72728025]
[1730163126328,2.8069,178.23,178.19,2.8074]
[1730163127816,2.8069,178.23,178.17,1.1776]
[1730163127817,4.44,178.24,178.17,2.8077]
[1730163128318,2.807,178.22,178.17,2.8077]
[1730163128722,4.44,178.24,178.17,2.8077]
[1730163129124,4.44,178.24,178.15,14.79818025]
[1730163129434,2.8074,178.2,178.16,2.8079]
[1730163130126,4.44,178.24,178.16,2.8079]
[1730163130127,2.8072,178.21,178.16,2.8079]
[1730163130424,4.44,178.24,178.18,2.8076]
[1730163130630,2.8071,178.22,178.18,2.8076]
[1730163130833,4.44,178.24,178.17,2.8078]
[1730163131021,2.8071,178.22,178.17,2.8078]
[1730163131226,2.8071,178.22,178.15,14.79818025]
[1730163131524,3.7088,178.27,178.19,13.50148025]
[1730163131525,2.8066,178.25,178.19,13.50148025]
[1730163131830,4.44,178.26,178.21,13.50148025]
[1730163133019,2.8061,178.28,178.22,2.8069]
[1730163133334,2.8061,178.28,178.23,13.50148025]
[1730163133335,4.44,178.27,178.23,13.50148025]
[1730163134032,7.2463,178.27,178.23,16.30818025]
[1730163135131,1.2938,178.31,178.25,2.8065]
[1730163135331,4.44,178.3,178.25,2.8065]
[1730163135531,4.44,178.3,178.23,13.50148025]
[1730163135833,7.8144501,178.36,178.28,13.50148025]
[1730163136026,4.44,178.35,178.28,13.50148025]
[1730163136329,2.8054,178.33,178.28,16.30748025]
[1730163136531,7.2454,178.33,178.28,16.30748025]
[1730163138128,7.2454,178.33,178.28,13.50148025]
[1730163138322,4.44,178.33,178.31,2.8056]
[1730163138529,4.44,178.33,178.28,13.50148025]
[1730163139332,4.44,178.33,178.31,2.8055]
[1730163140030,1.2747,178.38,178.31,16.30698025]
[1730163140236,2.8049,178.36,178.31,16.30698025]
[1730163140433,1.2747,178.38,178.31,13.50148025]
[1730163140634,4.44,178.37,178.32,2.8053]
[1730163142234,7.2448,178.36,178.32,2.8053]
[1730163143326,4.44,178.36,178.32,2.8053]
[1730163144536,7.2449,178.36,178.32,2.8053]
[1730163144929,2.8049,178.36,178.32,2.8053]
[1730163145439,7.2448,178.37,178.32,2.8053]
[1730163147038,4.22797631,178.36,178.32,2.8053]
[1730163147235,7.2448,178.37,178.32,2.8053]
[1730163148936,2.8048,178.37,178.32,2.8053]
[1730163149535,4.44,178.38,178.32,2.8053]
[1730163149844,4.44,178.38,178.33,2.8052]
[1730163150044,7.8144501,178.4,178.31,13.50148025]
[1730163150341,4.44,178.39,178.33,13.50148025]
[1730163150551,4.44,178.39,178.38,8.62259249]
[1730163151029,2.8039,178.42,178.38,8.62259249]
[1730163151229,2.8039,178.42,178.37,2.8045]
[1730163151230,4.36,178.43,178.39,8.62259249]
[1730163152244,2.8039,178.42,178.39,8.62259249]
[1730163152439,2.8039,178.42,178.38,2.8045]
[1730163153245,4.36,178.43,178.38,2.8045]
[1730163153444,7.1637,178.43,178.38,2.8045]
[1730163154841,1.2699,178.51,178.42,13.46977275]
[1730163155038,4.36,178.5,178.44,13.46977275]
[1730163155441,7.8144501,178.57,178.46,13.46977275]
[1730163155652,9.0437501,178.58,178.48,13.46977275]
[1730163155955,2.8023,178.52,178.48,13.46977275]
[1730163156140,5.5893,178.58,178.48,13.46977275]
[1730163157737,13.46977275,178.57,178.46,13.46977275]
[1730163158053,13.46977275,178.55,178.43,13.46977275]
[1730163158244,4.36,178.54,178.43,13.46977275]
[1730163158452,2.8035,178.45,178.41,13.46977275]
[1730163158945,2.803,178.48,178.43,13.46977275]
[1730163159348,4.36,178.55,178.43,13.46977275]
[1730163159543,2.8024,178.52,178.43,13.46977275]
[1730163159739,4.36,178.51,178.43,13.46977275]
[1730163161150,2.8033,178.46,178.43,13.46977275]
[1730163161748,4.36,178.51,178.43,13.46977275]
[1730163162253,7.8144501,178.55,178.46,13.46977275]
[1730163162456,4.36,178.54,178.46,13.46977275]
[1730163162756,2.8024,178.52,178.48,13.46977275]
[1730163163054,4.36,178.54,178.48,13.46977275]
[1730163163446,2.8024,178.52,178.48,13.46977275]
[1730163163945,4.36,178.54,178.48,13.46977275]
[1730163164247,2.8025,178.51,178.48,13.46977275]
[1730163165048,2.8027,178.5,178.46,13.46977275]
[1730163166253,2.8029,178.49,178.46,13.46977275]
[1730163166440,4.36,178.5,178.4,2.383]
[1730163166842,13.46977275,178.49,178.4,1.2065]
[1730163167142,14.65197275,178.49,178.4,1.2065]
[1730163167348,2.8037,178.44,178.4,1.2065]
[1730163167654,4.36,178.46,178.4,1.2065]
[1730163167848,2.8037,178.43,178.4,1.2065]
[1730163168360,2.804,178.42,178.37,13.46977275]
[1730163169245,2.8043,178.39,178.34,17.48077275]
[1730163169553,4.36,178.45,178.34,14.67577275]
[1730163169747,2.8042,178.41,178.35,2.8049]
[1730163170048,4.36,178.45,178.34,14.67577275]
[1730163170650,4.36,178.45,178.34,15.87387275]
[1730163171553,4.36,178.47,178.39,13.46977275]
[1730163171857,2.8034,178.45,178.4,2.8041]
[1730163172359,4.36,178.47,178.39,13.46977275]
[1730163173358,2.8033,178.46,178.41,2.804]
[1730163174559,2.8041,178.41,178.36,7.1648]
[1730163175059,2.8041,178.41,178.36,2.8048]
[1730163176464,2.8041,178.41,178.35,17.82977275]
[1730163176761,17.82977275,178.47,178.35,17.82977275]
[1730163177151,4.36,178.47,178.35,4.36]
[1730163177352,1.1822,178.49,178.4,13.46977275]
[1730163177558,5.5422,178.49,178.4,13.46977275]
[1730163178160,5.5422,178.49,178.4,16.27387275]
[1730163178763,4.36,178.48,178.4,16.27387275]
[1730163179264,2.8034,178.45,178.4,16.27387275]
[1730163179858,4.36,178.48,178.38,13.46977275]
[1730163180950,2.8034,178.45,178.4,2.8041]
[1730163181155,4.36,178.48,178.4,13.46977275]
[1730163181355,4.36,178.48,178.41,1.2899]
[1730163182367,2.8033,178.46,178.42,2.8038]
[1730163183367,2.8033,178.46,178.41,1.2899]
[1730163183563,2.8033,178.46,178.41,4.0939]
[1730163185759,2.8033,178.46,178.41,1.2899]
[1730163185960,2.8033,178.46,178.42,2.8039]
[1730163187069,4.36,178.48,178.39,7.1643]
[1730163187663,4.36,178.48,178.4,2.8041]
[1730163188572,17.82977275,178.48,178.37,13.46977275]
[1730163188763,1.2493,178.47,178.37,13.46977275]
[1730163189173,2.8037,178.44,178.39,2.8043]
[1730163189369,4.36,178.44,178.37,13.46977275]
[1730163189573,4.36,178.44,178.35,16.01207275]
[1730163190271,2.8039,178.42,178.37,2.8045]
[1730163190474,4.36,178.44,178.37,2.8045]
[1730163190772,2.8039,178.42,178.37,2.8045]
[1730163191266,4.36,178.44,178.37,2.8045]
[1730163191471,2.8038,178.43,178.35,16.01207275]
[1730163191672,2.8038,178.43,178.37,13.46977275]
[1730163192176,2.8038,178.43,178.38,2.8044]
[1730163192769,2.8039,178.42,178.38,2.8044]
[1730163193977,2.8038,178.43,178.37,13.46977275]
[1730163194367,4.36,178.44,178.37,13.46977275]
[1730163194571,1.2493,178.47,178.39,13.46977275]
[1730163194777,4.36,178.49,178.42,13.46977275]
[1730163195175,4.36,178.49,178.45,2.8034]
[1730163195482,4.36,178.51,178.45,2.8034]
[1730163195773,224.56984811,178.52,178.44,13.46977275]
[1730163195774,223.37944811,178.52,178.44,13.46977275]
[1730163195983,4.36,178.54,178.47,13.46977275]
[1730163196476,60.58,178.57,178.47,16.27277275]
[1730163196676,4.36,178.54,178.47,16.27277275]
[1730163197467,4.36,178.54,178.47,2.803]
[1730163197882,2.8022,178.53,178.47,2.803]
[1730163198077,4.36,178.54,178.49,2.8026]
[1730163198275,4.36,178.56,178.47,13.46977275]
[1730163198777,2.802,178.54,178.49,2.8027]
[1730163199471,2.802,178.54,178.48,2.8029]
[1730163199886,2.8024,178.52,178.45,17.82977275]
[1730163200078,2.8024,178.52,178.46,2.8031]
[1730163200470,2.8024,178.52,178.47,2.803]
[1730163202172,2.8022,178.53,178.48,2.8029]
[1730163204569,2.8024,178.52,178.47,16.27277275]
[1730163208188,1.1904,178.58,178.5,2.8025]
[1730163208189,2.8018,178.55,178.5,2.8025]
[1730163208478,12.97600574,178.61,178.54,8.61600574]
[1730163208983,8.61600574,178.72,178.6,8.61600574]
[1730163209182,8.61600574,178.72,178.53,2.82135657]
[1730163209183,9.86540574,178.72,178.65,8.61600574]
[1730163209371,2.7994,178.71,178.66,4.36]
[1730163209577,9.86540574,178.72,178.66,4.36]
[1730163210382,9.86540574,178.72,178.56,60.54]
[1730163210587,2.7999,178.67,178.61,16.24839352]
[1730163210778,1.2494,178.72,178.62,4.44]
[1730163211279,13.44759352,178.71,178.58,13.44759352]
[1730163211479,13.44759352,178.71,178.59,4.44]
[1730163211984,2.8002,178.66,178.59,7.241]
[1730163213486,13.44759352,178.71,178.59,7.241]
[1730163214282,2.7999,178.68,178.59,7.241]
[1730163214483,13.44759352,178.71,178.59,7.241]
[1730163215185,2.8004,178.65,178.59,2.801]
[1730163215378,13.44759352,178.71,178.6,4.44]
[1730163216183,13.44759352,178.71,178.61,16.24839352]
[1730163216380,13.44759352,178.71,178.61,13.44759352]
[1730163216584,1.2494,178.72,178.61,13.44759352]
[1730163216787,2.7998,178.69,178.63,2.8004]
[1730163217087,2.7998,178.69,178.64,4.44]
[1730163218496,2.7998,178.69,178.64,7.2404]
[1730163218880,2.7998,178.69,178.64,2.8004]
[1730163219085,1.2494,178.72,178.52,1.2297]
[1730163219086,13.44759352,178.71,178.62,4.44]
[1730163219486,2.8002,178.66,178.62,4.44]
[1730163219981,2.7999,178.68,178.62,7.2407]
[1730163220390,5.6894,178.72,178.62,7.2407]
[1730163220793,1.2494,178.72,178.63,13.44759352]
[1730163221089,1.2494,178.72,178.64,2.8004]
[1730163221289,1.2494,178.72,178.65,13.44759352]
[1730163221596,13.44759352,178.78,178.68,13.44759352]
[1730163221795,1.2178,178.77,178.68,17.88759352]
[1730163221992,2.7991,178.73,178.68,17.88759352]
[1730163222293,1.2178,178.77,178.68,17.88759352]
[1730163222994,16.18090843,178.8,178.68,17.88759352]
[1730163222995,13.44759352,178.8,178.68,17.88759352]
[1730163223197,19.04139352,178.87,178.68,17.88759352]
[1730163223198,2.7987,178.76,178.7,13.44759352]
[1730163223394,17.88759352,178.82,178.7,13.44759352]
[1730163223790,2.7983,178.78,178.73,13.44759352]
[1730163223994,4.44,178.83,178.73,17.88759352]
[1730163224295,2.7983,178.78,178.73,20.68659352]
[1730163224688,17.88759352,178.83,178.73,17.88759352]
[1730163224883,17.88759352,178.83,178.73,4.44]
[1730163225293,2.80362976,178.82,178.72,4.44]
[1730163225493,2.80362976,178.82,178.71,4.44]
[1730163225494,2.7987,178.75,178.71,4.44]
[1730163226393,17.88759352,178.83,178.71,4.44]
[1730163226597,17.88759352,178.83,178.71,7.2392]
[1730163226791,4.44,178.83,178.71,7.2392]
[1730163226992,2.7984,178.78,178.73,13.44759352]
[1730163227194,4.44,178.83,178.73,16.24649352]
[1730163227592,4.44,178.83,178.75,13.44759352]
[1730163227593,2.7978,178.81,178.75,13.44759352]
[1730163227800,4.44,178.85,178.75,17.88759352]
[1730163227994,3.7235,178.86,178.75,17.88759352]
[1730163228191,20.742047,178.91,178.8,13.44759352]
[1730163228393,3.7522,178.9,178.8,13.44759352]
[1730163228594,13.44759352,178.89,178.79,4.44]
[1730163228803,2.7977,178.82,178.79,4.44]
[1730163229000,13.44759352,178.89,178.79,4.44]
[1730163229192,3.7522,178.9,178.79,4.44]
[1730163229394,13.44759352,178.89,178.79,4.44]
[1730163229797,2.7974,178.84,178.79,4.44]
[1730163230202,13.44759352,178.89,178.78,2.7982]
[1730163230404,13.44759352,178.89,178.79,4.44]
[1730163231107,2.797,178.86,178.79,4.44]
[1730163231298,13.44759352,178.89,178.79,4.44]
[1730163231695,2.797,178.86,178.79,4.44]
[1730163231903,13.44759352,178.89,178.79,7.238]
[1730163232803,13.44759352,178.89,178.79,4.44]
[1730163233489,2.7973,178.85,178.79,4.44]
[1730163233690,13.44759352,178.89,178.79,4.44]
[1730163233893,13.44759352,178.89,178.77,13.44759352]
[1730163234099,2.7972,178.85,178.79,2.7979]
[1730163234505,13.44759352,178.89,178.78,4.42]
[1730163235096,13.44759352,178.89,178.78,7.2182]
[1730163236310,2.7973,178.84,178.78,7.2182]
[1730163236808,2.7973,178.84,178.8,13.44759352]
[1730163236998,3.7522,178.9,178.8,13.44759352]
[1730163237599,2.7972,178.85,178.8,16.24539352]
[1730163238207,17.19979352,178.9,178.79,2.798]
[1730163238401,17.19979352,178.9,178.8,4.42]
[1730163238912,2.7971,178.86,178.8,4.42]
[1730163239101,17.19979352,178.9,178.8,17.86759352]
[1730163239102,3.7522,178.9,178.8,17.86759352]
[1730163239299,2.7967,178.88,178.83,13.44759352]
[1730163239500,3.7522,178.9,178.83,13.44759352]
[1730163239898,1.2829,178.9,178.84,4.42]
[1730163240701,2.7974,178.84,178.82,4.36]
[1730163240906,2.7974,178.84,178.79,1.216]
[1730163241403,2.4727,178.89,178.8,17.80759352]
[1730163241704,2.7972,178.85,178.8,17.80759352]
[1730163242408,2.4727,178.89,178.8,17.80759352]
[1730163242702,2.797,178.87,178.83,13.44759352]
[1730163242897,1.2796,178.93,178.84,4.36]
[1730163243094,2.7965,178.9,178.84,4.36]
[1730163243310,1.2796,178.93,178.84,4.36]
[1730163243510,1.2796,178.93,178.84,7.1572]
[1730163243708,2.7967,178.88,178.84,4.36]
[1730163244002,1.2796,178.93,178.84,4.36]
[1730163244003,1.3003,178.92,178.84,4.36]
[1730163244412,2.7967,178.88,178.84,4.36]
[1730163245205,1.3003,178.92,178.79,1.216]
[1730163245206,17.80759352,178.91,178.79,1.216]
[1730163245404,19.00609352,178.91,178.8,4.36]
[1730163245802,19.00609352,178.91,178.81,13.44759352]
[1730163246914,2.7971,178.86,178.81,13.44759352]
[1730163247607,2.7972,178.85,178.81,13.44759352]
[1730163247808,4.36,178.9,178.81,13.44759352]
[1730163248011,4.36,178.9,178.81,17.80759352]
[1730163248901,2.7971,178.85,178.81,17.80759352]
[1730163249617,4.36,178.9,178.81,13.44759352]
[1730163250011,2.7973,178.84,178.81,13.44759352]
[1730163250909,1.1985,178.91,178.81,13.44759352]
[1730163251109,2.7968,178.88,178.83,16.24499352]
[1730163251310,1.1985,178.91,178.85,13.44759352]
[1730163251510,1.3003,178.92,178.87,2.7967]
[1730163251915,1.3003,178.92,178.85,13.44759352]
[1730163252112,1.3003,178.92,178.86,2.7969]
[1730163252113,4.0965,178.92,178.86,2.7969]
[1730163252313,2.5129,178.99,178.87,13.44759352]
[1730163252314,4.36,178.97,178.87,13.44759352]
[1730163252512,4.36,178.97,178.88,4.36]
[1730163252715,2.5129,178.99,178.88,4.36]
[1730163252915,4.36,178.98,178.89,13.44759352]
[1730163253517,2.7955,178.96,178.89,16.24409352]
[1730163253717,2.5129,178.99,178.89,16.24409352]
[1730163253915,6.8729,178.99,178.89,16.24409352]
[1730163254114,6.8729,178.99,178.89,13.44759352]
[1730163254420,2.7954,178.96,178.9,2.7963]
[1730163255421,2.7957,178.95,178.89,16.24409352]
[1730163256311,6.8729,178.99,178.89,13.44759352]
[1730163256312,2.7958,178.94,178.89,13.44759352]
[1730163256618,6.8729,178.99,178.89,13.44759352]
[1730163257010,6.8729,178.99,178.88,4.36]
[1730163258514,2.796,178.93,178.88,4.36]
[1730163259015,6.8729,178.99,178.89,13.44759352]
[1730163259218,2.7958,178.94,178.89,13.44759352]
[1730163259618,6.8729,178.99,178.89,13.44759352]
[1730163260220,13.44759352,179.03,178.92,13.44759352]
[1730163260416,13.44759352,179.03,178.94,13.44759352]
[1730163260727,2.7951,178.98,178.94,13.44759352]
[1730163260925,13.44759352,179.03,178.94,13.44759352]
[1730163261130,2.5049,179.04,178.94,13.44759352]
[1730163261327,2.5049,179.04,178.96,13.44759352]
[1730163261727,2.7944,179.03,178.96,16.24289352]
[1730163262027,1.1891,179.05,178.96,16.24289352]
[1730163262324,7.68315219,179.07,178.98,13.44759352]
[1730163262824,2.7943,179.04,178.98,13.44759352]
[1730163263416,2.7943,179.04,178.98,17.80759352]
[1730163264126,2.7943,179.04,178.98,20.60259352]
[1730163264328,4.36,179.08,178.98,20.60259352]
[1730163264329,4.36,179.1,178.98,17.80759352]
[1730163264630,2.794,179.05,178.98,7.1549]
[1730163264828,4.36,179.1,179.01,13.44759352]
[1730163265529,2.7939,179.06,179.01,13.44759352]
[1730163266935,2.7941,179.05,178.99,13.44759352]
[1730163267434,2.7939,179.06,179.01,13.44759352]
[1730163267628,1.223,179.11,179.03,13.44759352]
[1730163268224,2.7934,179.09,179.03,13.44759352]
[1730163268523,1.223,179.11,179.03,13.44759352]
[1730163269340,2.7937,179.08,179.03,13.44759352]
[1730163269525,1.223,179.11,179.03,13.44759352]
[1730163269729,2.794,179.06,179.03,4.36]
[1730163270238,4.36,179.12,179.03,17.80759352]
[1730163270537,2.7936,179.08,179.03,17.80759352]
[1730163270731,7.75057435,179.14,179.03,17.80759352]
[1730163270935,2.7937,179.08,179.03,17.80759352]
[1730163271431,1.2074,179.15,179.07,13.44759352]
[1730163271632,1.2074,179.15,179.07,17.78759352]
[1730163272834,2.7934,179.1,179.05,13.44759352]
[1730163273029,14.65499352,179.15,179.06,4.34]
[1730163273737,2.7929,179.13,179.06,4.34]
[1730163273938,14.65499352,179.15,179.06,4.34]
[1730163274235,2.7931,179.12,179.07,13.44759352]
[1730163274428,4.34,179.18,179.07,13.44759352]
[1730163274736,13.44759352,179.17,179.07,4.34]
[1730163274922,2.7932,179.11,179.07,4.34]
[1730163276144,13.44759352,179.17,179.05,13.44759352]
[1730163276339,2.7935,179.09,179.06,4.34]
[1730163276936,4.34,179.14,179.06,4.34]
[1730163277133,4.34,179.14,179.07,13.44759352]
[1730163277835,2.7933,179.1,179.07,13.44759352]
[1730163278134,4.34,179.14,179.05,4.34]
[1730163278338,13.44759352,179.13,179.05,4.34]
[1730163278540,4.34,179.14,179.05,17.78759352]
[1730163278728,2.793,179.12,179.05,20.58149352]
[1730163278928,4.34,179.14,179.05,20.58149352]
[1730163279532,13.44759352,179.13,179.05,4.34]
[1730163280032,2.7934,179.09,179.05,4.34]
[1730163280833,13.44759352,179.08,178.88,5.5932]
[1730163281037,2.7943,179.03,178.96,13.44759352]
[1730163281241,14.67529352,179.08,178.96,13.44759352]
[1730163281242,1.2277,179.08,178.96,13.44759352]
[1730163281539,13.44759352,179.06,178.96,13.44759352]
[1730163281733,4.34,179.05,178.96,13.44759352]
[1730163282538,4.34,179.05,178.97,2.7951]
[1730163283331,4.34,179.05,178.96,13.44759352]
[1730163283737,2.7945,179.02,178.96,13.44759352]